[Event "Early-Titled-Tuesday-Blitz-April-16-2024"]
[Site "Chess.com"]
[Date "2024.04.16"]
[Round "11"]
[White "PawnEatingZombie"]
[Black "Hui_Li_Macau"]
[Result "0-1"]
[WhiteElo "2242"]
[BlackElo "2382"]
[TimeControl "180+1"]
[EndTime "10:11:51 PDT"]
[Termination "Hui_Li_Macau won on time"]

1. e4 {[%clk 0:02:55.7]} 1... e5 {[%clk 0:02:59.1]} 2. Nf3 {[%clk 0:02:54.3]}
2... Nf6 {[%clk 0:02:59.7]} 3. Nc3 {[%clk 0:02:52.9]} 3... Nc6 {[%clk
0:02:59.8]} 4. Bb5 {[%clk 0:02:53]} 4... Bb4 {[%clk 0:02:59.1]} 5. O-O {[%clk
0:02:50.6]} 5... O-O {[%clk 0:02:59.4]} 6. Bxc6 {[%clk 0:02:44.7]} 6... dxc6
{[%clk 0:02:59.3]} 7. d3 {[%clk 0:02:38.8]} 7... Bg4 {[%clk 0:02:57.9]} 8. h3
{[%clk 0:02:38.7]} 8... Bh5 {[%clk 0:02:57.9]} 9. Kh1 {[%clk 0:02:23.7]} 9...
Bd6 {[%clk 0:02:55.4]} 10. Rg1 {[%clk 0:02:21]} 10... Nd7 {[%clk 0:02:39.4]} 11.
g4 {[%clk 0:02:20.1]} 11... Bg6 {[%clk 0:02:39.4]} 12. Ne2 {[%clk 0:02:12.9]}
12... Nc5 {[%clk 0:02:31.3]} 13. Ng3 {[%clk 0:02:10.2]} 13... Ne6 {[%clk
0:02:29.2]} 14. h4 {[%clk 0:02:02.1]} 14... h6 {[%clk 0:02:18.7]} 15. h5 {[%clk
0:01:59.8]} 15... Bh7 {[%clk 0:02:18.9]} 16. Nf5 {[%clk 0:01:57.2]} 16... Re8
{[%clk 0:02:14.6]} 17. g5 {[%clk 0:01:48.8]} 17... Bxf5 {[%clk 0:01:36.8]} 18.
exf5 {[%clk 0:01:42]} 18... Nxg5 {[%clk 0:01:36.5]} 19. Nxg5 {[%clk 0:01:36.5]}
19... hxg5 {[%clk 0:01:37.4]} 20. Bxg5 {[%clk 0:01:36.4]} 20... Qd7 {[%clk
0:01:37]} 21. Qg4 {[%clk 0:01:18.4]} 21... Bf8 {[%clk 0:01:36.7]} 22. Bf6 {[%clk
0:01:09]} 22... Kh7 {[%clk 0:01:08.5]} 23. Bxg7 {[%clk 0:00:44.5]} 23... Be7
{[%clk 0:01:04.7]} 24. f6 {[%clk 0:00:17.9]} 24... Qxg4 {[%clk 0:01:02.6]} 25.
Rxg4 {[%clk 0:00:18.8]} 25... Bc5 {[%clk 0:00:59.1]} 26. Rf1 {[%clk 0:00:14.4]}
26... Rg8 {[%clk 0:00:59.1]} 27. f4 {[%clk 0:00:11.6]} 27... Rae8 {[%clk
0:00:58.2]} 28. fxe5 {[%clk 0:00:09.6]} 28... Rxe5 {[%clk 0:00:58.2]} 29. Re4
{[%clk 0:00:10]} 29... Rxh5+ {[%clk 0:00:56.9]} 30. Kg2 {[%clk 0:00:09.6]} 30...
Bf8 {[%clk 0:00:50.1]} 31. Rh1 {[%clk 0:00:05.1]} 31... Rxh1 {[%clk 0:00:46.9]}
32. Kxh1 {[%clk 0:00:06]} 32... Bxg7 {[%clk 0:00:47]} 33. fxg7 {[%clk
0:00:06.5]} 33... Rxg7 {[%clk 0:00:42.2]} 34. Re7 {[%clk 0:00:02.5]} 34... f6
{[%clk 0:00:40.4]} 35. Re8 {[%clk 0:00:02]} 35... Kh6 {[%clk 0:00:37.5]} 36. Kh2
{[%clk 0:00:02.5]} 36... b6 {[%clk 0:00:32.5]} 37. Ra8 {[%clk 0:00:01.9]} 37...
a5 {[%clk 0:00:32.8]} 38. Rc8 {[%clk 0:00:02.3]} 38... Kg5 {[%clk 0:00:32.7]}
39. a4 {[%clk 0:00:02.4]} 39... Kf4 {[%clk 0:00:32]} 40. Re8 {[%clk 0:00:01.4]}
40... f5 {[%clk 0:00:31.2]} 0-1

[Event "Early-Titled-Tuesday-Blitz-April-16-2024"]
[Site "Chess.com"]
[Date "2024.04.16"]
[Round "11"]
[White "SaiHanThiha"]
[Black "tarno17"]
[Result "0-1"]
[WhiteElo "2493"]
[BlackElo "2134"]
[TimeControl "180+1"]
[EndTime "10:11:51 PDT"]
[Termination "tarno17 won on time"]

1. Nf3 {[%clk 0:03:00.9]} 1... d5 {[%clk 0:02:53.1]} 2. g3 {[%clk 0:03:00.8]}
2... Nd7 {[%clk 0:02:52]} 3. Bg2 {[%clk 0:02:59.4]} 3... e5 {[%clk 0:02:49.1]}
4. O-O {[%clk 0:02:59.7]} 4... Ngf6 {[%clk 0:02:47.9]} 5. d4 {[%clk 0:02:57.4]}
5... Bd6 {[%clk 0:02:45.7]} 6. Bg5 {[%clk 0:02:27]} 6... e4 {[%clk 0:02:44.9]}
7. Nfd2 {[%clk 0:02:24.3]} 7... h6 {[%clk 0:02:39.5]} 8. Bxf6 {[%clk 0:02:23.7]}
8... Nxf6 {[%clk 0:02:39.5]} 9. e3 {[%clk 0:02:23.5]} 9... O-O {[%clk
0:02:38.6]} 10. c4 {[%clk 0:02:23.7]} 10... c6 {[%clk 0:02:35.5]} 11. Nc3 {[%clk
0:02:24.2]} 11... Re8 {[%clk 0:02:33]} 12. cxd5 {[%clk 0:02:20]} 12... cxd5
{[%clk 0:02:31.8]} 13. Qb3 {[%clk 0:02:20.9]} 13... Be6 {[%clk 0:02:06.1]} 14.
Rfc1 {[%clk 0:01:46.4]} 14... Qd7 {[%clk 0:01:55.5]} 15. Qb5 {[%clk 0:01:45.8]}
15... Qe7 {[%clk 0:01:48.9]} 16. Na4 {[%clk 0:01:39.3]} 16... a6 {[%clk
0:01:21.1]} 17. Qb6 {[%clk 0:01:29.4]} 17... Rab8 {[%clk 0:01:19.8]} 18. Nc5
{[%clk 0:01:23.8]} 18... Rec8 {[%clk 0:01:05.5]} 19. Nxe6 {[%clk 0:01:15.6]}
19... fxe6 {[%clk 0:01:00.4]} 20. Bh3 {[%clk 0:01:09.2]} 20... g5 {[%clk
0:00:45.6]} 21. Nb3 {[%clk 0:00:50.6]} 21... g4 {[%clk 0:00:42.2]} 22. Bf1
{[%clk 0:00:50.3]} 22... h5 {[%clk 0:00:39.5]} 23. Na5 {[%clk 0:00:46.8]} 23...
Bc7 {[%clk 0:00:19.5]} 24. Rxc7 {[%clk 0:00:13.9]} 24... Rxc7 {[%clk 0:00:17.2]}
25. Bxa6 {[%clk 0:00:14.2]} 25... Rbc8 {[%clk 0:00:16.2]} 26. Bf1 {[%clk
0:00:11.4]} 26... h4 {[%clk 0:00:14.1]} 27. gxh4 {[%clk 0:00:10.6]} 27... Nh5
{[%clk 0:00:10.5]} 28. a4 {[%clk 0:00:05.5]} 28... Qf7 {[%clk 0:00:09.4]} 29.
Ra3 {[%clk 0:00:03]} 29... Rc2 {[%clk 0:00:09.5]} 30. Rb3 {[%clk 0:00:03.2]}
30... Qxf2+ {[%clk 0:00:09.1]} 0-1

[Event "Early-Titled-Tuesday-Blitz-April-16-2024"]
[Site "Chess.com"]
[Date "2024.04.16"]
[Round "11"]
[White "AlessiaSanteramo"]
[Black "amanjazu"]
[Result "0-1"]
[WhiteElo "2349"]
[BlackElo "2527"]
[TimeControl "180+1"]
[EndTime "10:11:52 PDT"]
[Termination "amanjazu won by checkmate"]

1. e4 {[%clk 0:03:00.9]} 1... Nf6 {[%clk 0:02:57.3]} 2. e5 {[%clk 0:02:53.6]}
2... Nd5 {[%clk 0:02:57.3]} 3. c4 {[%clk 0:02:53.1]} 3... Nb6 {[%clk 0:02:57.3]}
4. d4 {[%clk 0:02:54]} 4... d6 {[%clk 0:02:57.6]} 5. exd6 {[%clk 0:02:54.9]}
5... cxd6 {[%clk 0:02:58.5]} 6. Nc3 {[%clk 0:02:55.5]} 6... g6 {[%clk
0:02:58.5]} 7. Be3 {[%clk 0:02:56.4]} 7... Bg7 {[%clk 0:02:58.8]} 8. Rc1 {[%clk
0:02:57.3]} 8... O-O {[%clk 0:02:59.3]} 9. b3 {[%clk 0:02:57.9]} 9... Nc6 {[%clk
0:02:59.7]} 10. d5 {[%clk 0:02:57.7]} 10... Ne5 {[%clk 0:02:58]} 11. Be2 {[%clk
0:02:58.2]} 11... h5 {[%clk 0:02:56.1]} 12. f4 {[%clk 0:02:39.1]} 12... Ng4
{[%clk 0:02:55.4]} 13. Bd4 {[%clk 0:02:39.2]} 13... Bh6 {[%clk 0:02:11]} 14. Qd2
{[%clk 0:02:28.2]} 14... e5 {[%clk 0:02:06.8]} 15. dxe6 {[%clk 0:02:27.7]} 15...
fxe6 {[%clk 0:02:06.3]} 16. Bxg4 {[%clk 0:02:18.2]} 16... hxg4 {[%clk
0:02:07.2]} 17. Nge2 {[%clk 0:02:17.4]} 17... e5 {[%clk 0:01:48.6]} 18. Bxb6
{[%clk 0:02:16.9]} 18... axb6 {[%clk 0:01:04]} 19. O-O {[%clk 0:02:06.7]} 19...
Be6 {[%clk 0:00:48.7]} 20. Rcd1 {[%clk 0:02:06.8]} 20... Qf6 {[%clk 0:00:16.3]}
21. Ne4 {[%clk 0:01:56.6]} 21... Qf7 {[%clk 0:00:10.9]} 22. Nxd6 {[%clk
0:01:50]} 22... Qg7 {[%clk 0:00:09.1]} 23. Qe3 {[%clk 0:01:20.6]} 23... Rxa2
{[%clk 0:00:06.3]} 24. Nc3 {[%clk 0:01:00.7]} 24... Rb2 {[%clk 0:00:06.5]} 25.
Na4 {[%clk 0:00:52.7]} 25... Ra2 {[%clk 0:00:06.4]} 26. Qxe5 {[%clk 0:00:50.8]}
26... Qxe5 {[%clk 0:00:06.1]} 27. fxe5 {[%clk 0:00:51.1]} 27... Be3+ {[%clk
0:00:05.8]} 28. Kh1 {[%clk 0:00:51.4]} 28... Rxf1+ {[%clk 0:00:05.7]} 29. Rxf1
{[%clk 0:00:51.2]} 29... Bf2 {[%clk 0:00:06.2]} 30. Ne4 {[%clk 0:00:50.5]} 30...
Be3 {[%clk 0:00:06.6]} 31. Nf6+ {[%clk 0:00:47.9]} 31... Kg7 {[%clk 0:00:07]}
32. Ne8+ {[%clk 0:00:47.4]} 32... Kh6 {[%clk 0:00:07.4]} 33. Nd6 {[%clk
0:00:45]} 33... Bd7 {[%clk 0:00:07.8]} 34. Nxb7 {[%clk 0:00:40.8]} 34... Bc6
{[%clk 0:00:07.4]} 35. h3 {[%clk 0:00:23]} 35... Bxg2+ {[%clk 0:00:06.7]} 36.
Kh2 {[%clk 0:00:23.6]} 36... Bxf1+ {[%clk 0:00:06.9]} 37. Kg3 {[%clk 0:00:24.5]}
37... Bxh3 {[%clk 0:00:07.2]} 38. Nc3 {[%clk 0:00:22.6]} 38... Rg2+ {[%clk
0:00:08.1]} 39. Kh4 {[%clk 0:00:22.2]} 39... g5# {[%clk 0:00:09]} 0-1

[Event "Early-Titled-Tuesday-Blitz-April-16-2024"]
[Site "Chess.com"]
[Date "2024.04.16"]
[Round "11"]
[White "aanshnerurkar"]
[Black "NMChessToImpress"]
[Result "1-0"]
[WhiteElo "2444"]
[BlackElo "2270"]
[TimeControl "180+1"]
[EndTime "10:11:57 PDT"]
[Termination "aanshnerurkar won by checkmate"]

1. e4 {[%clk 0:03:00.9]} 1... e6 {[%clk 0:02:59.2]} 2. d4 {[%clk 0:03:00.4]}
2... d5 {[%clk 0:02:59]} 3. Nd2 {[%clk 0:02:55.2]} 3... Be7 {[%clk 0:02:58.1]}
4. Ngf3 {[%clk 0:02:55]} 4... Nf6 {[%clk 0:02:57.9]} 5. e5 {[%clk 0:02:54.9]}
5... Nfd7 {[%clk 0:02:58.4]} 6. Bd3 {[%clk 0:02:55]} 6... c5 {[%clk 0:02:58.8]}
7. c3 {[%clk 0:02:55.5]} 7... Nc6 {[%clk 0:02:59.3]} 8. O-O {[%clk 0:02:55.3]}
8... a5 {[%clk 0:02:56.8]} 9. Re1 {[%clk 0:02:45.9]} 9... cxd4 {[%clk
0:02:56.5]} 10. cxd4 {[%clk 0:02:45.5]} 10... Qb6 {[%clk 0:02:57.2]} 11. Qa4
{[%clk 0:02:21.4]} 11... g5 {[%clk 0:02:53.2]} 12. Nb3 {[%clk 0:02:15]} 12... g4
{[%clk 0:02:49.3]} 13. Nfd2 {[%clk 0:02:14.5]} 13... Qc7 {[%clk 0:02:38.6]} 14.
Nf1 {[%clk 0:01:32]} 14... Nb6 {[%clk 0:02:36.4]} 15. Qb5 {[%clk 0:01:31.4]}
15... a4 {[%clk 0:02:36.7]} 16. Nc5 {[%clk 0:01:27.8]} 16... Ra5 {[%clk
0:02:33.8]} 17. Qxa5 {[%clk 0:01:18.4]} 17... Nxa5 {[%clk 0:02:33.4]} 18. Bd2
{[%clk 0:01:18.7]} 18... Nac4 {[%clk 0:02:26.9]} 19. Bc3 {[%clk 0:01:18.4]}
19... Bxc5 {[%clk 0:02:16.2]} 20. dxc5 {[%clk 0:01:18.3]} 20... Qxc5 {[%clk
0:02:12.4]} 21. b3 {[%clk 0:01:18.5]} 21... Na3 {[%clk 0:01:33.7]} 22. Bb2
{[%clk 0:01:17.6]} 22... Bd7 {[%clk 0:01:15.6]} 23. Rac1 {[%clk 0:01:11.1]}
23... Qe7 {[%clk 0:01:10.5]} 24. Bd4 {[%clk 0:01:09.3]} 24... Qb4 {[%clk
0:01:00.7]} 25. Bc5 {[%clk 0:00:58.8]} 25... Qf4 {[%clk 0:00:53.2]} 26. Bxa3
{[%clk 0:00:48.6]} 26... Bc6 {[%clk 0:00:45]} 27. g3 {[%clk 0:00:12.4]} 27...
Qg5 {[%clk 0:00:35.5]} 28. Bc5 {[%clk 0:00:11.4]} 28... Nd7 {[%clk 0:00:35.5]}
29. Bd4 {[%clk 0:00:11.7]} 29... h5 {[%clk 0:00:34.2]} 30. b4 {[%clk 0:00:08.6]}
30... Nf8 {[%clk 0:00:21.8]} 31. b5 {[%clk 0:00:08.4]} 31... Bd7 {[%clk
0:00:22.1]} 32. Rc7 {[%clk 0:00:08.3]} 32... h4 {[%clk 0:00:18.6]} 33. Rxb7
{[%clk 0:00:08.4]} 33... hxg3 {[%clk 0:00:18.1]} 34. Nxg3 {[%clk 0:00:07.2]}
34... Qf4 {[%clk 0:00:15.5]} 35. Rb8+ {[%clk 0:00:05.1]} 35... Ke7 {[%clk
0:00:12.7]} 36. Bc5# {[%clk 0:00:04.9]} 1-0

[Event "Early-Titled-Tuesday-Blitz-April-16-2024"]
[Site "Chess.com"]
[Date "2024.04.16"]
[Round "11"]
[White "Jospem"]
[Black "Salem-AR"]
[Result "0-1"]
[WhiteElo "3062"]
[BlackElo "3051"]
[TimeControl "180+1"]
[EndTime "10:11:58 PDT"]
[Termination "Salem-AR won on time"]

1. e4 {[%clk 0:03:00.9]} 1... c5 {[%clk 0:03:00.5]} 2. Nf3 {[%clk 0:03:01.6]}
2... d6 {[%clk 0:03:01.3]} 3. c3 {[%clk 0:03:02.3]} 3... Nf6 {[%clk 0:03:01.7]}
4. h3 {[%clk 0:03:03]} 4... g6 {[%clk 0:03:02.3]} 5. Bd3 {[%clk 0:03:03.6]} 5...
Bg7 {[%clk 0:03:02.9]} 6. Bc2 {[%clk 0:03:04.3]} 6... O-O {[%clk 0:03:03.5]} 7.
d4 {[%clk 0:03:05.1]} 7... cxd4 {[%clk 0:03:03.6]} 8. cxd4 {[%clk 0:03:06]} 8...
Nc6 {[%clk 0:03:04.4]} 9. O-O {[%clk 0:03:06.7]} 9... e5 {[%clk 0:03:04.9]} 10.
dxe5 {[%clk 0:03:05.8]} 10... dxe5 {[%clk 0:03:01.1]} 11. Nc3 {[%clk 0:03:06.3]}
11... Be6 {[%clk 0:03:00.4]} 12. Bb3 {[%clk 0:03:01.8]} 12... Bxb3 {[%clk
0:02:55]} 13. Qxb3 {[%clk 0:02:59.1]} 13... Nd4 {[%clk 0:02:55.2]} 14. Nxd4
{[%clk 0:02:55.7]} 14... exd4 {[%clk 0:02:55.2]} 15. Rd1 {[%clk 0:02:56.2]}
15... Qb8 {[%clk 0:02:42.3]} 16. Rxd4 {[%clk 0:02:41.4]} 16... Ng4 {[%clk
0:02:41.9]} 17. e5 {[%clk 0:02:42]} 17... Nxe5 {[%clk 0:02:35.2]} 18. Bf4 {[%clk
0:02:42.1]} 18... Qc8 {[%clk 0:02:25.4]} 19. Rad1 {[%clk 0:02:36.9]} 19... Re8
{[%clk 0:02:23]} 20. Re4 {[%clk 0:02:19.7]} 20... Qc6 {[%clk 0:02:07.8]} 21. Nd5
{[%clk 0:02:07.6]} 21... b5 {[%clk 0:01:32.7]} 22. Rde1 {[%clk 0:01:39.6]} 22...
Rad8 {[%clk 0:01:17.6]} 23. Nc3 {[%clk 0:00:37.1]} 23... Nd3 {[%clk 0:01:06.2]}
24. Rxe8+ {[%clk 0:00:38]} 24... Rxe8 {[%clk 0:01:06.2]} 25. Rxe8+ {[%clk
0:00:38.9]} 25... Qxe8 {[%clk 0:01:06.3]} 26. Be3 {[%clk 0:00:39.8]} 26... a6
{[%clk 0:00:59.1]} 27. Nd5 {[%clk 0:00:40.3]} 27... Nxb2 {[%clk 0:00:55.3]} 28.
Qa3 {[%clk 0:00:33.7]} 28... Na4 {[%clk 0:00:49.4]} 29. Qd6 {[%clk 0:00:33.5]}
29... Nc3 {[%clk 0:00:31.7]} 30. Nc7 {[%clk 0:00:18.6]} 30... Qc8 {[%clk
0:00:25.4]} 31. a3 {[%clk 0:00:10]} 31... Bf8 {[%clk 0:00:22.8]} 32. Qe5 {[%clk
0:00:07.6]} 32... Bg7 {[%clk 0:00:21]} 33. Qd6 {[%clk 0:00:08.1]} 33... Ne4
{[%clk 0:00:21]} 34. Qxa6 {[%clk 0:00:02.8]} 34... Qxa6 {[%clk 0:00:15.3]} 35.
Nxa6 {[%clk 0:00:03.7]} 35... Bf8 {[%clk 0:00:12.2]} 36. Nc7 {[%clk 0:00:03]}
36... Nc3 {[%clk 0:00:12.9]} 37. Bd2 {[%clk 0:00:01.8]} 37... Nb1 {[%clk
0:00:13.6]} 0-1

[Event "Early-Titled-Tuesday-Blitz-April-16-2024"]
[Site "Chess.com"]
[Date "2024.04.16"]
[Round "11"]
[White "MrVenky"]
[Black "only_strong_moves"]
[Result "0-1"]
[WhiteElo "2531"]
[BlackElo "2643"]
[TimeControl "180+1"]
[EndTime "10:12:01 PDT"]
[Termination "only_strong_moves won by resignation"]

1. Nf3 {[%clk 0:03:00.9]} 1... Nf6 {[%clk 0:02:59.5]} 2. g3 {[%clk 0:03:01.3]}
2... e6 {[%clk 0:02:59.5]} 3. Bg2 {[%clk 0:03:01.5]} 3... d5 {[%clk 0:03:00.4]}
4. d3 {[%clk 0:03:01.6]} 4... Be7 {[%clk 0:02:59.7]} 5. Nbd2 {[%clk 0:03:02]}
5... O-O {[%clk 0:03:00.6]} 6. e4 {[%clk 0:03:01.9]} 6... dxe4 {[%clk
0:03:00.4]} 7. dxe4 {[%clk 0:03:00.7]} 7... Nc6 {[%clk 0:03:01]} 8. O-O {[%clk
0:03:00.4]} 8... e5 {[%clk 0:03:01.5]} 9. Re1 {[%clk 0:03:00.7]} 9... Bc5 {[%clk
0:02:58.9]} 10. h3 {[%clk 0:02:57.6]} 10... Be6 {[%clk 0:02:57]} 11. c3 {[%clk
0:02:55.7]} 11... a5 {[%clk 0:02:55.6]} 12. Ng5 {[%clk 0:02:48.2]} 12... Bd7
{[%clk 0:02:45.2]} 13. Nc4 {[%clk 0:02:44.5]} 13... Qe7 {[%clk 0:02:44.9]} 14.
Ne3 {[%clk 0:02:41.1]} 14... Bxe3 {[%clk 0:02:43.7]} 15. Rxe3 {[%clk 0:02:26.9]}
15... Rad8 {[%clk 0:02:43]} 16. Qf1 {[%clk 0:02:21.1]} 16... Qc5 {[%clk
0:02:39.1]} 17. Re1 {[%clk 0:02:13.9]} 17... Qb6 {[%clk 0:02:32.1]} 18. b3
{[%clk 0:02:10.3]} 18... Qc5 {[%clk 0:02:23.3]} 19. Qc4 {[%clk 0:01:53.5]} 19...
Qxc4 {[%clk 0:02:23]} 20. bxc4 {[%clk 0:01:53.2]} 20... b6 {[%clk 0:02:21.6]}
21. Ba3 {[%clk 0:01:52.2]} 21... Rfe8 {[%clk 0:02:20.6]} 22. c5 {[%clk
0:01:45.5]} 22... b5 {[%clk 0:02:20.3]} 23. Bf1 {[%clk 0:01:43.4]} 23... Rb8
{[%clk 0:02:01.4]} 24. Rab1 {[%clk 0:01:40.7]} 24... b4 {[%clk 0:01:53.9]} 25.
cxb4 {[%clk 0:01:40.2]} 25... axb4 {[%clk 0:01:54.8]} 26. Bb2 {[%clk 0:01:39.6]}
26... h6 {[%clk 0:01:55.4]} 27. Nf3 {[%clk 0:01:38.3]} 27... Be6 {[%clk
0:01:56]} 28. a3 {[%clk 0:01:31.5]} 28... bxa3 {[%clk 0:01:36.9]} 29. Bxa3
{[%clk 0:01:30.8]} 29... Rxb1 {[%clk 0:01:37.8]} 30. Rxb1 {[%clk 0:01:30.8]}
30... Nxe4 {[%clk 0:01:38.7]} 31. Bb5 {[%clk 0:01:30.1]} 31... Rb8 {[%clk
0:01:25.7]} 32. Bd3 {[%clk 0:01:28.5]} 32... Rxb1+ {[%clk 0:01:24.1]} 33. Bxb1
{[%clk 0:01:28.5]} 33... Nc3 {[%clk 0:01:22.4]} 34. Bc2 {[%clk 0:01:26.3]} 34...
Bd5 {[%clk 0:01:22.5]} 35. Nd2 {[%clk 0:01:19.8]} 35... Nd4 {[%clk 0:01:23]} 36.
Bd3 {[%clk 0:01:16]} 36... c6 {[%clk 0:01:14.5]} 37. Bb2 {[%clk 0:01:15.6]}
37... Ncb5 {[%clk 0:01:11.9]} 38. f4 {[%clk 0:01:08.2]} 38... exf4 {[%clk
0:01:11.8]} 39. gxf4 {[%clk 0:01:08.1]} 39... Ne6 {[%clk 0:01:12.1]} 40. Bxb5
{[%clk 0:00:50.1]} 40... cxb5 {[%clk 0:01:11.9]} 41. Kf2 {[%clk 0:00:45.7]}
41... Nxc5 {[%clk 0:01:09.8]} 42. Ke3 {[%clk 0:00:45.3]} 42... Bc6 {[%clk
0:01:05.9]} 43. Kd4 {[%clk 0:00:44.5]} 43... Ne6+ {[%clk 0:01:06.1]} 44. Ke5
{[%clk 0:00:44.6]} 44... Ba8 {[%clk 0:00:48.5]} 45. f5 {[%clk 0:00:39]} 45...
Ng5 {[%clk 0:00:48.6]} 46. h4 {[%clk 0:00:38.7]} 46... f6+ {[%clk 0:00:48.9]}
47. Kf4 {[%clk 0:00:21.3]} 47... Nf7 {[%clk 0:00:49]} 48. Bc3 {[%clk 0:00:21.3]}
48... Kf8 {[%clk 0:00:47.3]} 49. Bb4+ {[%clk 0:00:20.3]} 49... Ke8 {[%clk
0:00:48]} 50. Nb3 {[%clk 0:00:20.2]} 50... Ne5 {[%clk 0:00:41.4]} 51. Nd4 {[%clk
0:00:19.4]} 51... Nd3+ {[%clk 0:00:41.5]} 0-1

[Event "Early-Titled-Tuesday-Blitz-April-16-2024"]
[Site "Chess.com"]
[Date "2024.04.16"]
[Round "11"]
[White "IsmaelAmadorGarcia"]
[Black "NastyaHn"]
[Result "1-0"]
[WhiteElo "2356"]
[BlackElo "2448"]
[TimeControl "180+1"]
[EndTime "10:12:04 PDT"]
[Termination "IsmaelAmadorGarcia won on time"]

1. e4 {[%clk 0:03:00.9]} 1... e6 {[%clk 0:02:54.9]} 2. Bb5 {[%clk 0:02:56.1]}
2... c6 {[%clk 0:02:51.8]} 3. Ba4 {[%clk 0:02:56.3]} 3... d5 {[%clk 0:02:51]} 4.
exd5 {[%clk 0:02:43.4]} 4... exd5 {[%clk 0:02:48]} 5. d4 {[%clk 0:02:43.7]} 5...
Nf6 {[%clk 0:02:47.1]} 6. Bg5 {[%clk 0:02:42.7]} 6... Bd6 {[%clk 0:02:45.4]} 7.
Nf3 {[%clk 0:02:39.8]} 7... O-O {[%clk 0:02:44]} 8. O-O {[%clk 0:02:39.7]} 8...
Bg4 {[%clk 0:02:43.7]} 9. h3 {[%clk 0:02:38.7]} 9... Bh5 {[%clk 0:02:43]} 10.
Nbd2 {[%clk 0:02:39]} 10... Nbd7 {[%clk 0:02:43.1]} 11. c3 {[%clk 0:02:36.8]}
11... Qc7 {[%clk 0:02:42.3]} 12. Bc2 {[%clk 0:02:35.2]} 12... Bg6 {[%clk
0:02:41.5]} 13. Nh4 {[%clk 0:02:32.3]} 13... Rae8 {[%clk 0:02:31.6]} 14. Nxg6
{[%clk 0:02:29.7]} 14... fxg6 {[%clk 0:02:31.3]} 15. Rc1 {[%clk 0:02:17.2]}
15... Nh5 {[%clk 0:02:22.5]} 16. c4 {[%clk 0:02:14.2]} 16... Nf4 {[%clk
0:02:08.6]} 17. Bb3 {[%clk 0:01:53.8]} 17... Ne2+ {[%clk 0:02:04.6]} 18. Kh1
{[%clk 0:01:53.1]} 18... Nxc1 {[%clk 0:02:01.6]} 19. Qxc1 {[%clk 0:01:54]} 19...
dxc4 {[%clk 0:01:59.3]} 20. Nxc4 {[%clk 0:01:52.7]} 20... Kh8 {[%clk 0:01:57.5]}
21. Nxd6 {[%clk 0:01:32.9]} 21... Qxd6 {[%clk 0:01:56.2]} 22. Be3 {[%clk
0:01:07]} 22... Nf6 {[%clk 0:01:53.1]} 23. d5 {[%clk 0:01:07.2]} 23... b6 {[%clk
0:01:33]} 24. Qxc6 {[%clk 0:01:05.4]} 24... Qe5 {[%clk 0:01:19.5]} 25. Qb7
{[%clk 0:00:46.3]} 25... Ne4 {[%clk 0:01:14]} 26. Kg1 {[%clk 0:00:41.3]} 26...
Re7 {[%clk 0:00:43.4]} 27. Qc6 {[%clk 0:00:41]} 27... Rc7 {[%clk 0:00:36.2]} 28.
Qa4 {[%clk 0:00:41]} 28... Nd6 {[%clk 0:00:30.4]} 29. Bd4 {[%clk 0:00:36.7]}
29... Qe7 {[%clk 0:00:26.6]} 30. Qb4 {[%clk 0:00:35.3]} 30... Rfc8 {[%clk
0:00:15.7]} 31. Bc3 {[%clk 0:00:32.4]} 31... Qd7 {[%clk 0:00:08.6]} 32. Ba4
{[%clk 0:00:25.5]} 32... b5 {[%clk 0:00:08.2]} 33. Bb3 {[%clk 0:00:25.7]} 33...
a6 {[%clk 0:00:08]} 34. Re1 {[%clk 0:00:22.8]} 34... h6 {[%clk 0:00:04.1]} 35.
Qf4 {[%clk 0:00:21.4]} 35... g5 {[%clk 0:00:03.6]} 36. Qd4 {[%clk 0:00:20]}
36... Nf5 {[%clk 0:00:03.6]} 37. Qe5 {[%clk 0:00:19.3]} 37... Rxc3 {[%clk
0:00:01.7]} 38. bxc3 {[%clk 0:00:18.8]} 38... a5 {[%clk 0:00:02.1]} 39. Bc2
{[%clk 0:00:17.9]} 39... Nd6 {[%clk 0:00:01.7]} 40. Qd4 {[%clk 0:00:14.3]} 40...
b4 {[%clk 0:00:01.3]} 41. Re6 {[%clk 0:00:12.8]} 1-0